Cogmind - Beta 9.6 @@@ ROGUE MODE // 2020.04.27 @ 05:59:32 Player: Baran Korkmaz Result: Destroyed by Y-45 Defender with Beam Rifle Performance ------------- Evolutions (1) 500 Regions Visited (2) 400 Robots Destroyed (36) 180 Value Destroyed (934) 934 Prototype IDs (2) 40 Alien Tech Used (0) 0 Bonus (69) 69 TOTAL SCORE: 2123 Bonus ------- High Alert Combat Kills 69 Cogmind --------- Core Integrity 0/400 Matter 140/300 Energy 184/250 System Corruption 0% Temperature Cool (9) Movement Walking (150) Ox1 Location -9/Materials Parts ------- > --- POWER (2) -------- Ion Engine > --- PROPULSION (3) --- Aluminum Leg > --- UTILITY (2) ------ Medium Storage Unit Hardened Light Armor Plating > --- WEAPON (2) ------- (None) > --- INVENTORY (8) ---- Improved Ion Engine Heat Sink Disposable Heat Sink Improved Signal Interpreter Trap Extractor Peak State ------------ > --- POWER ------------ Improved Ion Engine Improved Ion Engine > --- PROPULSION ------- Wheel Wheel > --- UTILITY ---------- Heat Sink Medium Storage Unit > --- WEAPON ----------- Autogun Autogun > --- INVENTORY -------- Improved Signal Interpreter Improved Signal Interpreter Trap Extractor Trap Extractor EM Pulse Gun Grenade Launcher [Rating: 13] Favorites ----------- Power Improved Ion Engine Engine Improved Ion Engine Propulsion Wheel Leg Aluminum Leg Wheel Wheel Flight Unit Flight Unit Utility Medium Storage Unit Device Heat Sink Storage Medium Storage Unit Processor Visual Processing Unit Protection Hardened Light Armor Plating Weapon Light Cannon Energy Gun Particle Gun Ballistic Gun Heavy Assault Rifle Ballistic Cannon Light Cannon Launcher Rocket Launcher Build | -11 -10 -9 ------- Run | Scr Mat Mat Slots Evolved 2 | . . 2 Power 1 | . . 1 Propulsion 1 | . . 1 Utility . | . . . Weapon . | . . . Parts Attached 48 | 7 5 36 Power 8 | 2 1 5 Engine 8 | 2 1 5 Core . | . . . Reactor . | . . . Propulsion 11 | 2 . 9 Treads . | . . . Leg 5 | . . 5 Wheel 2 | 2 . . Hover . | . . . Flight 4 | . . 4 Utility 6 | 1 1 4 Device 3 | 1 . 2 Storage 1 | . 1 . Processor 1 | . . 1 Hackware . | . . . Protection 1 | . . 1 Artifact . | . . . Weapon 23 | 2 3 18 Energy Gun 5 | 1 1 3 Energy Cannon . | . . . Ballistic Gun 8 | 1 2 5 Ballistic Cannon 7 | . . 7 Launcher 3 | . . 3 Special Weapon . | . . . Impact Weapon . | . . . Slashing Weapon . | . . . Piercing Weapon . | . . . Special Melee Weapon . | . . . Unidentified Prototypes . | . . . Parts Lost 12 | . . 12 Power 2 | . . 2 Propulsion 6 | . . 6 Utility . | . . . Weapon 4 | . . 4 Highest Loss Streak 8 | . . 8 Average Slot Usage (%) 77 | . 92 74 Engine 13 | . 14 13 Leg 8 | . . 10 Wheel 11 | . 28 7 Flight 1 | . . 1 Device 7 | . 14 5 Storage 11 | . 13 11 Processor 4 | . . 5 Energy Gun 3 | . 6 2 Ballistic Gun 9 | . 14 7 Ballistic Cannon 6 | . . 7 Naked Turns . | . . . Heaviest Build 29 | 9 22 29 Greatest Support 20 | 20 20 20 Greatest Overweight (x) 5 | . 1 5 Average Overweight (x) . | . . . Largest Inventory Capacity 8 | 4 8 8 Average Capacity 7 | 4 7 8 Most Carried 8 | 4 8 8 Average Carried 6 | . 5 7 Final Capacity 8 | 4 8 8 Final Carried 6 | 3 6 5 Class Distribution -------------------- 66% | Mutant 33% | Scavenger-Mutant Dominant Class ---------------- Mutant | -10/Materials Mutant | -9/Materials Resources | -11 -10 -9 ----------- Run | Scr Mat Mat Matter Collected 1087 | 271 . 816 Remotely . | . . . Salvage Created 936 | 34 . 902 Parts 68 | 4 . 64 Haulers Intercepted . | . . . Recyclers Shooed . | . . . Parts Field Recycled . | . . . Retrieved Matter . | . . . Parts Self-Destructed . | . . . Prevented . | . . . Kills | -11 -10 -9 ------- Run | Scr Mat Mat Combat Hostiles Destroyed 29 | 1 . 28 Guns 13 | 1 . 12 Cannons 11 | . . 11 AOE 5 | . . 5 Classes Destroyed 7 | 1 . 6 Worker 1 | . . 1 Builder 3 | . . 3 Recycler 2 | . . 2 Mechanic 1 | . . 1 Swarmer 8 | . . 8 Grunt 15 | 1 . 14 Sentry 6 | . . 6 Best Kill Streak 11 | 1 . 11 Combat Bots Only 8 | 1 . 8 Max Kills in Single Turn 3 | 1 . 3 Gunslinging . | . . . Exploded 1 | . . 1 Melee . | . . . Uniques/NPCs Destroyed . | . . . Combat | -11 -10 -9 -------- Run | Scr Mat Mat Damage Taken 1908 | . . 1908 Core 404 | . . 404 Absorbed by Shields . | . . . Core Remaining (%) 100 | 100 100 . Volleys Fired 102 | 2 3 97 Largest 2 | 2 1 2 Hottest 88 | 60 40 88 Shots Fired 162 | 3 3 156 Gun 68 | 3 3 62 Cannon 84 | . . 84 Launcher 10 | . . 10 Special . | . . . Kinetic 142 | 1 . 141 Thermal 5 | . . 5 Explosive 10 | . . 10 Electromagnetic 5 | 2 3 . Robot Hit Streak 13 | 1 2 13 Robot Miss Streak 3 | 1 1 3 Penetration Max . | . . . Secondary Targets . | . . . Shots Hit Robots 107 | 2 2 103 Core Hits 56 | 1 . 55 Critical Hits 1 | . . 1 Critical Kills . | . . . Critical Parts Destroyed 1 | . . 1 Melee Attacks . | . . . Impact . | . . . Slashing . | . . . Piercing . | . . . Sneak Attacks . | . . . Combat Hostiles . | . . . Follow-up Attacks . | . . . Damage Inflicted 2494 | 27 15 2452 Guns 656 | 27 15 614 Cannons 990 | . . 990 Explosions 848 | . . 848 Melee . | . . . Ramming . | . . . Kinetic 1553 | . . 1553 Thermal 51 | . . 51 Explosive 848 | . . 848 Electromagnetic 42 | 27 15 . Impact . | . . . Slashing . | . . . Piercing . | . . . Highest Corruption . | . . . Average Corruption . | . . . Corruption Purged . | . . . Overload Shots . | . . . Overflow Damage 9 | . . 9 Projectiles . | . . . Explosions 9 | . . 9 Melee . | . . . Knockbacks 2 | . . 2 Impact . | . . . Kinetic 2 | . . 2 Secondary . | . . . Self-Inflicted Damage 8 | . . 8 Shots 1 | . . 1 Rammed . | . . . Targets Rammed . | . . . Kicked . | . . . Crushed . | . . . Highest Temperature 110 | 20 . 110 Average Temperature 34 | 15 . 34 Received Heat Transfer 633 | . . 633 Siege Activations . | . . . Robots Corrupted . | . . . Combat Hostiles . | . . . Parts Fried . | . . . Impact Corruptions . | . . . Robots Melted . | . . . Combat Hostiles . | . . . Parts Melted . | . . . Heat Transferred 111 | . . 111 Parts Sabotaged . | . . . Parts Stolen . | . . . Parts Stripped . | . . . Power Chain Reactions . | . . . Missiles Intercepted . | . . . Alert | -11 -10 -9 ------- Run | Scr Mat Mat Peak Influence 560 | 20 43 560 Average Influence 208 | 4 40 257 Maximum Alert Level 2 | . . 2 Low Security (%) 53 | 100 100 40 Level 1 35 | . . 45 Level 2 10 | . . 13 Level 3 . | . . . Level 4 . | . . . Level 5 . | . . . High Security . | . . . Max Security . | . . . Squads Dispatched 4 | . 1 3 Investigation 2 | . . 2 Extermination . | . . . Reinforcement 2 | . 1 1 Assault . | . . . Garrison . | . . . Intercept . | . . . Construction Impeded 1 | . . 1 Haulers Reinforced . | . . . Stealth | -11 -10 -9 --------- Run | Scr Mat Mat Distress Signals . | . . . Communications Jammed . | . . . Distress Signals . | . . . Times Spotted 39 | 1 1 37 Peak Tracking Total 7 | 1 1 7 Tactical Retreats . | . . . Traps | -11 -10 -9 ------- Run | Scr Mat Mat Traps Triggered 1 | . . 1 Indirectly . | . . . Trap Hack Attempts . | . . . Triggered . | . . . Disarmed . | . . . Reprogrammed . | . . . Reused . | . . . Traps Extracted . | . . . Installed . | . . . Triggered . | . . . Machines | -11 -10 -9 ---------- Run | Scr Mat Mat Machines Disabled 2 | . 1 1 Max in Single Turn 1 | . 1 1 Machines Sabotaged . | . . . Garrisons Compromised . | . . . Overloaded Fab Kills . | . . . Fab Network Shutdowns . | . . . Hacking | -11 -10 -9 --------- Run | Scr Mat Mat Machines Accessed 3 | . 1 2 Terminals 2 | . . 2 Fabricators . | . . . Repair Stations . | . . . Recycling Units 1 | . 1 . Scanalyzers . | . . . Garrison Access . | . . . Total Hacks 11 | . 4 7 Successful 11 | . 4 7 Failed . | . . . Catastrophic . | . . . Database Lockouts . | . . . Manual . | . . . Terminals 7 | . . 7 Fabricators . | . . . Repair Stations . | . . . Recycling Units 4 | . 4 . Scanalyzers . | . . . Garrison Access . | . . . Terminal Hacks 7 | . . 7 Record 3 | . . 3 Robot Analysis 1 | . . 1 Prototype ID Bank 1 | . . 1 Alert Level 1 | . . 1 Locate Traps 1 | . . 1 Fabricator Hacks . | . . . Repair Station Hacks . | . . . Recycling Unit Hacks 4 | . 4 . Recycle Component 2 | . 2 . Process 1 | . 1 . Retrieve Matter 1 | . 1 . Scanalyzer . | . . . Garrison Access Hacks . | . . . Unauthorized Hacks . | . . . Terminals . | . . . Fabricators . | . . . Repair Stations . | . . . Recycling Units . | . . . Scanalyzers . | . . . Garrison Access . | . . . Data Cores Recovered . | . . . Used . | . . . Hacking Detections 3 | . 1 2 Full Trace Events 1 | . . 1 Feedback Events . | . . . Feedback Blocked . | . . . Robot Schematics Acquired . | . . . Robots Built . | . . . Matter . | . . . Time . | . . . Total Robot Build Rating . | . . . Part Schematics Acquired . | . . . Parts Built . | . . . Matter . | . . . Time . | . . . Total Part Build Rating . | . . . Parts Repaired . | . . . Time . | . . . Parts Recycled 2 | . 2 . Recycled Matter 7 | . 7 . Retrieved Matter 7 | . 7 . Retrieved Components . | . . . Parts Scanalyzed . | . . . Part Schematics Acquired . | . . . Parts Damaged . | . . . Bothacking | -11 -10 -9 ------------ Run | Scr Mat Mat Used RIF Installer . | . . . Robots Hacked . | . . . Non-combat . | . . . Combat . | . . . Robot Hacks Applied . | . . . Relay Couplers Released . | . . . Robots Rewired . | . . . Allies Hacked . | . . . Hacks Repelled . | . . . Allies | -11 -10 -9 -------- Run | Scr Mat Mat Total Allies . | . . . Largest Group . | . . . Highest-Rated Group . | . . . Highest-Rated Ally . | . . . Total Orders . | . . . Ally Attacks . | . . . Total Damage . | . . . Kills . | . . . Allies Corrupted . | . . . Allies Melted . | . . . Intel | -11 -10 -9 ------- Run | Scr Mat Mat Robot Analysis Total 1 | . . 1 Derelict Logs Recovered . | . . . Drone Launches . | . . . Drone Recoveries . | . . . Exploration | -11 -10 -9 ------------- Run | Scr Mat Mat Turns Passed 1059 | 63 168 828 Spaces Moved 631 | 58 181 392 Core 22 | 15 . 7 Treads . | . . . Legs 197 | . . 197 Wheels 400 | 43 181 176 Hover . | . . . Flight 12 | . . 12 Fastest Speed 34 | 50 80 34 Average Speed 101 | 72 80 115 Slowest Speed 300 | 80 90 300 Overloaded Moves . | . . . Propulsion Burnouts . | . . . Robots Hopped . | . . . Cave-ins Triggered . | . . . Exploration Rate (%) 20 | 5 27 30 Regions Visited 2 Branch Regions . Pre-discovered Areas . | . . . Known Exits Taken . | . . . Unknown Exits Taken 2 | 1 1 . Scrap Searched . | . . . Spaces Dug 8 | . . 8 Terrain Destroyed 73 | . . 73 Melee . | . . . Projectile . | . . . AOE 73 | . . 73 Actions | -11 -10 -9 --------- Run | Scr Mat Mat Total 900 | 75 202 623 Wait 45 | . . 45 Move 629 | 57 180 392 Hop . | . . . Pick Up 44 | 9 8 27 Fast Attach 2 | . 1 1 Attach 34 | 6 1 27 Detach 8 | . 1 7 Swap 12 | 1 3 8 Drop 24 | . 5 19 Fire 102 | 2 3 97 Melee . | . . . Ram . | . . . Kick . | . . . Crush . | . . . Escape Stasis . | . . . Rewire . | . . . Trap . | . . . Miscellaneous . | . . . Route ------- -11/Scrapyard -10/Materials -9/Materials History --------- Turn | Location | Event 2 | -11/Scrapyard | Met Revision 17 44 | -11/Scrapyard | Discovered new exit (range 8) 64 | -11/Scrapyard | Entered Materials 186 | -10/Materials | Discovered new exit (range 3) 232 | -10/Materials | Entered another Materials area 232 | -9/Materials | Evolved 2 slots: Power x1, Propulsion x1 336 | -9/Materials | Build established: Mutant 607 | -9/Materials | Destroyed 8 combat bots 883 | -9/Materials | Build established: Scavenger-Mutant 959 | -9/Materials | Lost 3 parts (1p1n1w) 1010 | -9/Materials | Core integrity fell below 50% 1037 | -9/Materials | Destroyed 7 combat bots 1044 | -9/Materials | Core integrity fell below 20% 1060 | -9/Materials | Destroyed by Y-45 Defender with Beam Rifle Last Messages --------------- Aluminum Leg destroyed. U-05 Engineer builds a Wall. Acquired Ion Engine. K-01 Serf collects debris. U-05 Engineer lays Concrete. U-05 Engineer builds a Wall. Acquired 22 matter. K-01 Serf destroyed. Extracted 100 matter. U-05 Engineer lays Concrete. U-05 Engineer builds a Wall. K-01 Serf collects debris. Acquired Aluminum Leg. U-05 Engineer builds a Wall. K-01 Serf collects debris. Lgt. Cannon destroyed. Discarded Visual Processing Unit. U-05 Engineer lays Concrete. K-01 Serf collects debris. [Achievement: First Step to Greatness] Map ----- +----------------------------------------------------+ | | | | | | | | | | | | | | | | | | | | | | | ??????????????????#############??????????????????? | | ??????????????????# ##?????????????????? | | ??????????????????# "" ??????????????????? | | ??????????????????# " #??????????????????? | | ??????????????????# """#??????????????????? | | ??????????????????# R"#??????????????????? | | ??????????????????# """#??????????????????? | | ??????????????????# #??????????????????? | | ??????????????????## ####?????????????????? | | ?????????????????????# Y % ####??????????????? | | ?????????????????????# u !! #??????????????? | | ????????????????????## %= #??????????????? | | ???????????????#????# # % #??????????????? | | ???????????????# ???# = #####??????????????? | | ???????????????# ?#### %@! #??????????????????? | | ???????????????# # # =Y##########?????????????? | | ??????????????# *% ?????? | | ??????????????## k # #########????????????? | | ??????????????## !! # ##???????????????????? | | ??????????????######### ###############????????? | | ??????????????# ]!! # # % # #????????? | | ??????????????# # # # #????????? | | ??????????????# |! /a + # " #????????? | | ??????????????## # # #""" [#????????? | | ???????????????# # u# #"" ] #????????? | | ???????????????# # # #""" #????????? | | ???????????????######## ######## "" #????????? | | ??????????????????????# ## ##""" #????????? | | ??????????????????????# ## ##""" #????????? | | ??????????????????????# ## ##""" #????????? | | ??????????????????????# ## !!## " ########## | | ??????????????????????# # !## ## | | ##############?????## ## ! ## ## | | ?? ####### ###+######+#### | | ########## # """ | | * + =+ """"" | | = ###### [ # """"" | | ]!!#????# ####### ##########/##+# """"" | | ] ######## ###???#####+#####??# # """ | +----------------------------------------------------+ Best States ------------- Heat Dissipation 38 Energy Generation 19 Energy Capacity 430 Matter Stores 300 Matter Capacity 300 Sight Range 18 Terrain Scan Density 10 Armor Coverage 150 Evasion (%) 63 Item Schematics ----------------- None Robot Schematics ------------------ None Fabricated ------------ Nothing Alien Tech Used ----------------- None Achievements -------------- Crack Shot First Step to Greatness One Hack Too Far Uninvited Guest Challenges ------------ None Game ------ Seed NovaBombInsulator Manual? 0 Play Time 01:00:04 Cumulative 1.9 hours Start 2020.04.27 @ 04:30:32 End 2020.04.27 @ 05:59:32 Sessions 1 Manual Loads 0 Difficulty Rogue Special Mode None Game No. 1 Rogue 1 Adventurer 0 Explorer 0 Win Type - Total 0 Types 0/0/0/0/0/0/0 Lore% 0 Gallery% 2 Achievement% 1 Wizard Run 0 Options --------- ASCII 1 Keyboard 0 Movement Mouse Keybinds 0 Fullscreen 1 Font 14/Smallcaps Map View 72x54 Tactical HUD 0 Map Filters NONE Filters NONE Steam 1 RUN: 54a5d540-beb3-416e-9912-bc892033a818